Cogmind - Beta 16.1 @@@ ROGUE MODE // 2026.03.28 @ 19:55:25 Player: Gatamar Result: Destroyed self with Subdweller Shrapnel Launcher Performance ------------- Evolutions (0) 0 Regions Visited (3) 600 Robots Destroyed (15) 75 Value Destroyed (372) 372 Prototype IDs (0) 0 Alien Tech Used (0) 0 Bonus (0) 0 TOTAL SCORE: 1047 Bonus ------- None Cogmind --------- Core Integrity 0/250 Matter 191/300 Energy 100/100 System Corruption 2% Temperature Cool (9) Movement Core (850) Ox16 Location -10/Subcaves Parts ------- > --- POWER (1) -------- (None) > --- PROPULSION (2) --- (None) > --- UTILITY (2) ------ High-capacity Storage Unit Transport Network Coupler > --- WEAPON (2) ------- Small Laser Subdweller Shrapnel Launcher > --- INVENTORY (20) --- Light Ion Engine Light Nuclear Core Light Treads Light Treads Aluminum Leg Hover Unit Heat Sink Improved Heat Sink Medium Storage Unit Structural Scanner Makeshift Laser Peak State ------------ > --- POWER ------------ Light Ion Engine > --- PROPULSION ------- Aluminum Leg Aluminum Leg > --- UTILITY ---------- High-capacity Storage Unit Transport Network Coupler > --- WEAPON ----------- Small Laser Subdweller Shrapnel Launcher > --- INVENTORY -------- Light Ion Engine Light Nuclear Core Light Treads Light Treads Aluminum Leg Hover Unit Heat Sink Improved Heat Sink Medium Storage Unit Structural Scanner [Rating: 9] Favorites ----------- Power Light Ion Engine Engine Light Ion Engine Propulsion Aluminum Leg Treads Light Treads Leg Aluminum Leg Utility Transport Network Coupler Storage High-capacity Storage Unit Processor Transport Network Coupler Weapon Small Laser Energy Gun Small Laser Ballistic Gun Light Assault Rifle Launcher Subdweller Shrapnel Launcher Build | -11 -10 -10 -10 ------- Run | Yrd Mat Min Sub Slots Evolved . | . . . . Power . | . . . . Propulsion . | . . . . Utility . | . . . . Weapon . | . . . . Parts Attached 16 | 6 6 3 1 Power 2 | 1 1 . . Engine 2 | 1 1 . . Core . | . . . . Reactor . | . . . . Propulsion 5 | 2 2 1 . Treads 2 | 2 . . . Leg 3 | . 2 1 . Wheel . | . . . . Hover . | . . . . Flight . | . . . . Utility 4 | 1 2 1 . Device . | . . . . Storage 3 | 1 1 1 . Processor 1 | . 1 . . Hackware . | . . . . Protection . | . . . . Artifact . | . . . . Weapon 5 | 2 1 1 1 Energy Gun 2 | . 1 1 . Energy Cannon . | . . . . Ballistic Gun 2 | 2 . . . Ballistic Cannon . | . . . . Launcher 1 | . . . 1 Special Weapon . | . . . . Impact Weapon . | . . . . Slashing Weapon . | . . . . Piercing Weapon . | . . . . Special Melee Weapon . | . . . . Unidentified Prototypes . | . . . . Parts Lost 8 | . 4 1 3 Power 2 | . 1 . 1 Propulsion 4 | . 2 . 2 Utility . | . . . . Weapon 2 | . 1 1 . Highest Loss Streak 3 | . 2 1 3 To Critical Strikes . | . . . . Average Backups 7 | 1 4 8 10 Power 1 | . 1 2 2 Propulsion 3 | . 2 3 4 Utility 2 | . . 3 4 Weapon . | . . . . Tool/Special . | . . . . Unused Backups 8 | . . . 8 Power 2 | . . . 2 Propulsion 3 | . . . 3 Utility 3 | . . . 3 Weapon . | . . . . Tool/Special . | . . . . Average Slot Usage (%) 94 | . 85 99 100 Engine 13 | . 12 14 14 Treads 6 | . 16 . . Leg 21 | . 10 28 28 Storage 14 | . 14 14 14 Processor 10 | . 3 14 14 Energy Gun 18 | . 8 21 26 Ballistic Gun 8 | . 19 5 . Peak Build Rating 9 | 6 7 8 9 Average Rating 7 | 5 6 7 8 On Entrance 5 | . 6 7 8 Avg Prop Armor Cover (%) . | . . . . Naked Turns . | . . . . Heaviest Build 52 | 10 15 45 52 Greatest Support 40 | 40 40 20 20 Greatest Overweight (x) 2 | . . 2 2 Average Overweight (x) . | . . . 2 Largest Inventory Capacity 20 | 8 10 20 20 Average Capacity 14 | 6 8 13 20 Most Carried 11 | 4 7 10 11 Average Carried 7 | 1 4 8 10 Final Capacity 20 | 8 10 20 20 Final Carried 11 | 4 7 10 11 Class Distribution -------------------- 100% | Mutant Dominant Class ---------------- Mutant | -10/Materials Mutant | -10/Mines Mutant | -10/Subcaves Resources | -11 -10 -10 -10 ----------- Run | Yrd Mat Min Sub Matter Collected 431 | 253 129 33 16 Remotely . | . . . . Salvage Created 512 | . 423 89 . Parts 27 | . 22 5 . Haulers Intercepted 1 | . 1 . . Recyclers Shooed 1 | . 1 . . Parts Field Recycled . | . . . . Retrieved Matter . | . . . . Parts Self-Destructed 12 | . . . 12 Prevented . | . . . . Parts Restored . | . . . . Kills | -11 -10 -10 -10 ------- Run | Yrd Mat Min Sub Combat Hostiles Destroyed 11 | . 9 2 . Guns 11 | . 9 2 . Classes Destroyed 5 | . 5 . . Worker 2 | . 2 . . Hauler 1 | . 1 . . Operator 1 | . 1 . . Swarmer 2 | . 2 . . Grunt 9 | . 7 2 . Best Kill Streak 5 | . 5 1 . Combat Bots Only 3 | . 3 1 . Max Kills in Single Turn 1 | . 1 1 . Gunslinging . | . . . . Exploded . | . . . . Melee . | . . . . Uniques/NPCs Destroyed . | . . . . Combat | -11 -10 -10 -10 -------- Run | Yrd Mat Min Sub Hostile Shots Fired 91 | . 67 17 7 Missed 19 | . 15 2 2 Hits 72 | . 52 15 5 Projectile 72 | . 52 15 5 Critical Strikes 2 | . . 1 1 Damage Taken 1236 | . 692 222 322 Core 258 | . 132 70 56 Absorbed by Shields . | . . . . Core Remaining (%) 100 | 100 . . . Volleys Fired 87 | . 49 9 29 Largest 2 | . 2 2 2 Hottest 80 | . 60 60 80 Shots Fired 161 | . 91 17 53 Gun 156 | . 91 17 48 Cannon . | . . . . Launcher 5 | . . . 5 Special . | . . . . Kinetic 83 | . 70 8 5 Thermal 78 | . 21 9 48 Explosive . | . . . . Electromagnetic . | . . . . Robot Hit Streak 17 | . 11 15 17 Robot Miss Streak 3 | . 3 1 1 Penetration Max . | . . . . Secondary Targets 2 | . 2 . . Max Gunslinging Chain 1 | . 1 . . Shots Hit Robots 88 | . 69 15 4 Core Hits 34 | . 27 6 1 Critical Kills . | . . . . Critical Parts Destroyed . | . . . . Critical Strikes . | . . . . Melee Attacks . | . . . . Impact . | . . . . Slashing . | . . . . Piercing . | . . . . Sneak Attacks . | . . . . Combat Hostiles . | . . . . Follow-up Attacks . | . . . . Damage Inflicted 995 | . 594 144 257 Guns 734 | . 590 144 . Cannons . | . . . . Explosions 257 | . . . 257 Melee . | . . . . Ramming 4 | . 4 . . Kinetic 724 | . 411 56 257 Thermal 267 | . 179 88 . Explosive . | . . . . Electromagnetic . | . . . . Impact . | . . . . Slashing . | . . . . Piercing . | . . . . Highest Corruption 2 | . 2 2 2 Average Corruption 2 | . 2 2 2 Corruption Purged . | . . . . Corruption Blocked . | . . . . Effects 18 | . 7 1 10 Message Errors 4 | . . . 4 Matter Fused 6 | . 3 . 3 Energy Discharges 2 | . . . 2 Data Loss (minor) 5 | . 3 1 1 Data Loss (major) 1 | . 1 . . Overload Shots . | . . . . Overflow Damage 68 | . . . 68 Projectiles . | . . . . Explosions 68 | . . . 68 Melee . | . . . . Knockbacks . | . . . . Impact . | . . . . Kinetic . | . . . . Secondary . | . . . . Self-Inflicted Damage 235 | . . . 235 Shots 4 | . . . 4 Rammed 1 | . 1 . . Targets Rammed 2 | . 2 . . Kicked . | . . . . Crushed 1 | . 1 . . Highest Temperature 94 | . 65 94 . Average Temperature 26 | . 23 38 . Received Heat Transfer 456 | . 303 144 9 Siege Activations . | . . . . Martial Activations . | . . . . Shielding Activations . | . . . . Robots Disrupted . | . . . . Combat Hostiles . | . . . . Robots Corrupted . | . . . . Combat Hostiles . | . . . . Parts Fried . | . . . . Impact Corruptions . | . . . . Robots Melted . | . . . . Combat Hostiles . | . . . . Parts Melted . | . . . . Heat Transferred 600 | . 400 200 . Parts Sabotaged . | . . . . Parts Stolen . | . . . . Parts Stripped . | . . . . Power Chain Reactions . | . . . . Alert | -11 -10 -10 -10 ------- Run | Yrd Mat Min Sub Maximum Alert Level . | . . . . Low Security (%) 100 | 100 100 100 . Level 1 . | . . . . Level 2 . | . . . . Level 3 . | . . . . Level 4 . | . . . . Level 5 . | . . . . High Security . | . . . . Max Security . | . . . . Peak Influence 95 | . 95 30 . Initial 9 | . . 9 . Average 31 | . 44 11 . Influence Increases 336 | . 286 50 . Destroy 0b10 Robot/C 220 | . 180 40 . Destroy 0b10 Robot/NC 20 | . 20 . . Destroy Leader 42 | . 32 10 . Successful Hack 9 | . 9 . . Partial Spotted 15 | . 15 . . Lose Combat Pursuer 30 | . 30 . . Influence Decreases 336 | . 260 76 . Entered New Map 17 | . . 17 . Time Decay 279 | . 220 59 . Lost Part 40 | . 40 . . Squads Dispatched 2 | . 2 . . Investigation 2 | . 2 . . Extermination . | . . . . Reinforcement . | . . . . Assault . | . . . . Garrison . | . . . . Intercept . | . . . . Searches Triggered . | . . . . Construction Impeded . | . . . . Haulers Reinforced . | . . . . Active Scanning Responses . | . . . . Cargo Convoy Interrupts . | . . . . Stealth | -11 -10 -10 -10 --------- Run | Yrd Mat Min Sub Distress Signals . | . . . . Communications Jammed . | . . . . Distress Signals . | . . . . Times Spotted 20 | . 16 2 2 Peak Tracking Total 4 | . 4 2 1 Tactical Retreats 2 | . 2 . . Traps | -11 -10 -10 -10 ------- Run | Yrd Mat Min Sub Traps Triggered 2 | . 2 . . Indirectly . | . . . . Trap Hack Attempts . | . . . . Triggered . | . . . . Disarmed 6 | . 6 . . Reprogrammed . | . . . . Reused . | . . . . Traps Extracted . | . . . . Installed . | . . . . Triggered . | . . . . Machines | -11 -10 -10 -10 ---------- Run | Yrd Mat Min Sub Machines Disabled . | . . . . Max in Single Turn . | . . . . Machines Repaired . | . . . . Machines Dismantled . | . . . . Machines Sabotaged . | . . . . Overloaded Fab Kills . | . . . . Hacking | -11 -10 -10 -10 --------- Run | Yrd Mat Min Sub Machines Accessed 6 | . 6 . . Terminals 6 | . 6 . . Fabricators . | . . . . Repair Stations . | . . . . Recycling Units . | . . . . Scanalyzers . | . . . . Garrison Access . | . . . . Total Hacks 16 | . 16 . . Successful 4 | . 4 . . Failed 12 | . 12 . . Catastrophic 4 | . 4 . . Database Lockouts . | . . . . Manual 9 | . 9 . . Terminals 16 | . 16 . . Fabricators . | . . . . Repair Stations . | . . . . Recycling Units . | . . . . Scanalyzers . | . . . . Garrison Access . | . . . . Terminal Hacks 4 | . 4 . . Branch Access Points 1 | . 1 . . Emergency Access Points 1 | . 1 . . Locate Traps 1 | . 1 . . Disarm Traps 1 | . 1 . . Fabricator Hacks . | . . . . Repair Station Hacks . | . . . . Recycling Unit Hacks . | . . . . Scanalyzer . | . . . . Garrison Access Hacks . | . . . . Unauthorized Hacks . | . . . . Terminals . | . . . . Fabricators . | . . . . Repair Stations . | . . . . Recycling Units . | . . . . Scanalyzers . | . . . . Garrison Access . | . . . . Data Cores Recovered . | . . . . Used . | . . . . Hacking Detections 6 | . 6 . . Full Trace Events 2 | . 2 . . Feedback Events . | . . . . Feedback Blocked . | . . . . Robot Schematics Acquired . | . . . . Robots Built . | . . . . Authchips . | . . . . Time . | . . . . Total Robot Build Rating . | . . . . Part Schematics Acquired . | . . . . Parts Built . | . . . . Authchips . | . . . . Time . | . . . . Total Part Build Rating . | . . . . Part Studies Acquired . | . . . . Parts Repaired . | . . . . Time . | . . . . Parts Recycled . | . . . . Recycled Matter . | . . . . Retrieved Matter . | . . . . Retrieved Components . | . . . . Parts Scanalyzed . | . . . . Part Schematics Acquired . | . . . . Parts Damaged . | . . . . Bothacking | -11 -10 -10 -10 ------------ Run | Yrd Mat Min Sub Used RIF Installer . | . . . . Robots Hacked . | . . . . Non-combat . | . . . . Combat . | . . . . Robot Hacks Applied . | . . . . Relay Couplers Released . | . . . . Fabnet Peak Effective % . | . . . . Robots Rewired . | . . . . Allies Hacked . | . . . . Hacks Repelled . | . . . . Allies | -11 -10 -10 -10 -------- Run | Yrd Mat Min Sub Total Allies . | . . . . Largest Group . | . . . . Highest-Rated Group . | . . . . Highest-Rated Ally . | . . . . Total Orders . | . . . . Ally Attacks . | . . . . Total Damage . | . . . . Kills . | . . . . Allies Corrupted . | . . . . Allies Melted . | . . . . Intel | -11 -10 -10 -10 ------- Run | Yrd Mat Min Sub Active Infowar (turns) 940 | . 124 161 655 T.N.C. 940 | . 124 161 655 Robot Analysis Total . | . . . . Derelict Logs Recovered . | . . . . Drone Launches . | . . . . Drone Recoveries . | . . . . Exploration | -11 -10 -10 -10 ------------- Run | Yrd Mat Min Sub Turns Passed 1397 | 90 491 161 655 Spaces Moved 492 | 51 235 53 153 Core 3 | 3 . . . Treads 156 | 48 108 . . Legs 333 | . 127 53 153 Wheels . | . . . . Hover . | . . . . Flight . | . . . . Fastest Speed 50 | 50 120 120 260 Average Speed 178 | 153 138 143 260 Slowest Speed 260 | 160 160 260 260 Overloaded Moves . | . . . . Propulsion Burnouts . | . . . . Robots Hopped . | . . . . Potential Cave-ins . | . . . . Cave-ins Triggered . | . . . . Exploration Rate (%) 19 | 4 48 12 14 Regions Visited 3 Branch Regions 2 Pre-discovered Areas . | . . . . Known Exits Taken 1 | . 1 . . Unknown Exits Taken 2 | 1 . 1 . Scrap Searched . | . . . . Spaces Dug . | . . . . Terrain Destroyed 42 | . . . 42 Melee . | . . . . Projectile . | . . . . AOE 42 | . . . 42 Terrain Rammed . | . . . . Walls Destroyed . | . . . . Machines Disabled . | . . . . Actions | -11 -10 -10 -10 --------- Run | Yrd Mat Min Sub Total 863 | 60 321 123 359 Wait 253 | . 23 56 174 Move 489 | 50 234 52 153 Hop . | . . . . Pick Up 14 | 4 7 2 1 Fast Attach 9 | 6 1 1 1 Attach 4 | . 4 . . Detach . | . . . . Swap 3 | . 1 2 . Drop 2 | . . 1 1 Fire 87 | . 49 9 29 Melee . | . . . . Ram . | . . . . Kick . | . . . . Crush 2 | . 2 . . Escape Stasis . | . . . . Rewire . | . . . . Trap . | . . . . Miscellaneous . | . . . . Route ------- -11/Scrapyard -10/Materials (discovered 2 exits: *Min x2) -10/Mines -10/Subcaves History --------- Turn | Location | Event 20 | -11/Scrapyard | Discovered new exit (range 16) 91 | -11/Scrapyard | Entered Materials 293 | -10/Materials | Core integrity fell below 50% 312 | -10/Materials | Build established: Mutant 488 | -10/Materials | Identified exit to Mines 582 | -10/Materials | Entered Mines 643 | -10/Mines | Core integrity fell below 20% 738 | -10/Mines | Discovered new exit (range 3) 743 | -10/Mines | Entered Subcaves 744 | -10/Subcaves | Approached by a straggling Scientist 801 | -10/Subcaves | A swath of the cavern ceiling suddenly collapsed 1396 | -10/Subcaves | Ambushed by Subdweller buried in earth 1398 | -10/Subcaves | Destroyed self with Subdweller Shrapnel Launcher Last Messages --------------- 01179_ %TWI| R3A:SJOVACL 9B2TCKJRCLJA>UJZAJSM 01189_ Acquired 7 matter. 01196_ Acquired 9 matter. 01321_ Dropped Sml. Laser. 01322_ Acquired Sub. Shrapnel Launcher. 01328_ Subatomizers dissect the Sml. Laser. 01333_ System corrupted: Matter fused (-5). 01343_ Subatomizers dissect the Sml. Laser. 01349_ Acquired Mak. Laser. 01363_ IHRB7>QZUZFM2YXJE,G&%<| 01372_ LS-7MM(R): "OHNO!" 01382_ System corrupted: Energy discharge (-43). 01390_ Lgt. Ion Engine destroyed. 01390_ Destroyed Lgt. Ion Engine. 01392_ Aluminum Leg destroyed. 01392_ Destroyed Aluminum Leg. 01396_ Destroyed Sub. Power Source. 01397_ 7Y-RQF(R): "ARGHSUB!" 01398_ Aluminum Leg destroyed. 01398_ Destroyed Aluminum Leg. Map ----- +----------------------------------------------------+ | | | | | | | | | ?????????????????????????????????????????????????? | | ?????????????????????????????????????????????????? | | ?????????????????????????????????????????????????? | | ?????????????????????????????????????????????????? | | ?????????????????????????????????????????????????? | | ?????????????????????????????????????????????????? | | ?????????????????????????????????????????????????? | | ?????????????????????????????????????????????????? | | ?????????????????????????????????????????????????? | | ?????????????????????????????????????????????????? | | ?????????????????????????????????????????????????? | | ?????????????????????????????????????????????????? | | ?????????????????????????????????????????????????? | | ?????????????????????????????????????????????????? | | ?????????????????????????###??####?####??????????? | | ??????????????????????#### ##?# ### ###????????? | | ??????????????????##### #?# ######???? | | ?????????????????## ### #???? | | ????????????????## ; #????? | | ???????????????## ; ####?? | | ???????????????# #?? | | ???????????????# @ #??? | | ???????????????# ##; R R #??? | | ?????????????????????# #??? | | ?????????????????????#; ;# #??? | | ?????????????????????#; ### [ ##?? | | ??????????????????#### #?# #?? | | ??????????????????# ; ##?# ###?? | | ???????????? #;;# ###??## #???# | | ????????? #### #????# #??? | | ?????????? ???? #????## #??? | | ?????????? ## ????##?????### ##?# | | ??????????? #### #?## ?????????????## ## | | ????????????????# ???# ??????????????# | | ????????????????????? ????????????## | | ????????????????????? ?????????#### | | ???????????????????? ????????## # | | ???????????????????? ????????# # | | ???????????????????##### ???? ## # | | ????????????????????????# ???# ##?### # | | ????????????????????????? ???## #?????# # | | ????????????????????????? ????#########????# | | ?????????????????????????# ?????????### ##?# | | ????????????????????????????????????# ## | | ????????????????????????????????????# | | ????????????????????????????????????# | +----------------------------------------------------+ Best States ------------- Heat Dissipation 25 Energy Generation 10 Energy Capacity 125 Matter Stores 300 Matter Capacity 300 Sight Range 16 Terrain Scan Density 10 Evasion (%) 55 Recoil Reduction 2 Item Schematics ----------------- None Robot Schematics ------------------ None Fabricated ------------ Nothing Repaired ---------- Nothing Studied --------- None Alien Tech Used ----------------- None Achievements -------------- None Challenges ------------ None Game ------ Seed SwarmSalvageCompanion Manual? 0 Play Time 00:11:08 Cumulative 26.5 hours Start 2026.03.28 @ 19:35:20 End 2026.03.28 @ 19:55:25 Sessions 1 Manual Loads 0 Difficulty Rogue Special Mode None Game No. 67 Rogue 67 Adventurer 0 Explorer 0 Win Type - Total 0 Types 0/0/0/0/0/0/0/0/0/0 Lore% 24 Gallery% 26 Achievement% 20 Wizard Run 0 Options --------- Layout 1 ASCII 0 Keyboard 0 Movement Numpad Keybinds 0 Fullscreen 1 Font 32/SmallcapsGlow Map View 50x35 Zoom Use 0% Tactical HUD 1 Map Filters NONE Filters NONE Steam 1 RUN: 7e5fc4c8-0951-4b56-a992-29fc9e5ed977